bitfinex/quotes_ETHUSD_20241231
["timestamp","ask_amount","ask_price","bid_price","bid_amount"]
[1735664155411,0.15301163,3411.8,3411.7,0.04064785]
[1735664155941,0.15301163,3411.8,3411.2,6.56334226]
[1735664156147,0.15301163,3411.8,3411.7,0.04064785]
[1735664156285,0.15301163,3411.8,3411.0,6.71306]
[1735664156645,0.8305,3411.7,3411.2,2.9315]
[1735664157429,0.8305,3411.7,3411.3,3.42718]
[1735664158040,0.8305,3411.7,3411.4,0.04071801]
[1735664158533,0.8305,3411.7,3411.5,4.07423092]
[1735664158716,0.8305,3411.7,3411.6,2.93709]
[1735664158924,0.8305,3411.7,3411.6,2.97769473]
[1735664159103,0.8305,3411.7,3411.6,0.04060473]
[1735664159426,0.8305,3411.7,3411.5,3.94594]
[1735664159603,0.8305,3411.7,3411.6,0.04060473]
[1735664159803,0.8305,3411.7,3411.6,2.41611473]
[1735664160111,0.8305,3411.7,3411.6,2.50374]
[1735664160315,0.8305,3411.7,3411.6,0.04063466]
[1735664160511,0.8305,3411.7,3411.6,2.24801]
[1735664160719,0.8305,3411.7,3411.6,0.04063466]
[1735664161032,0.15301163,3411.8,3411.6,0.79720547]
[1735664161332,0.15301163,3411.8,3411.6,6.42108466]
[1735664161546,0.15301163,3411.8,3411.7,3.42316]
[1735664161733,0.15301163,3411.8,3411.7,0.04504236]
[1735664161926,0.15301163,3411.8,3411.5,3.0]
[1735664162151,0.15301163,3411.8,3411.7,0.04504236]
[1735664162431,0.15301163,3411.8,3411.7,6.13111824]
[1735664162621,0.15301163,3411.8,3411.7,2.97613236]
[1735664162815,0.15301163,3411.8,3411.7,5.23453236]
[1735664163295,0.15301163,3411.8,3411.7,6.01593236]
[1735664163898,0.15301163,3411.8,3411.7,3.08484236]
[1735664164105,0.15301163,3411.8,3411.7,3.3933266]
[1735664164927,0.15301163,3411.8,3411.7,2.6119266]
[1735664165697,0.15301163,3411.8,3411.7,2.3864266]
[1735664166236,0.15301163,3411.8,3411.7,2.38596109]
[1735664166593,0.15301163,3411.8,3411.7,4.55181685]
[1735664166954,0.15301163,3411.8,3411.7,0.04457685]
[1735664167160,0.15301163,3411.8,3411.6,3.98466]
[1735664167449,0.15301163,3411.8,3411.7,0.04457685]
[1735664167589,0.15301163,3411.8,3411.7,3.10660685]
[1735664168434,0.15301163,3411.8,3411.7,0.04457685]
[1735664168834,0.15301163,3411.8,3411.7,4.26276]
[1735664169000,0.15301163,3411.8,3411.7,0.04457685]
[1735664169201,0.15301163,3411.8,3411.7,3.41389685]
[1735664169399,0.15301163,3411.8,3411.7,3.36932]
[1735664169609,0.15301163,3411.8,3411.7,0.04457685]
[1735664169938,0.15301163,3411.8,3411.5,5.93126]
[1735664170135,0.15301163,3411.8,3411.7,0.04457685]
[1735664170430,0.15301163,3411.8,3411.5,5.93126]
[1735664170630,0.15301163,3411.8,3411.7,0.04461009]
[1735664170935,0.15301163,3411.8,3411.7,0.04452144]
[1735664171109,0.15301163,3411.8,3411.5,5.93126]
[1735664171290,0.15301163,3411.8,3411.7,0.04452144]
[1735664171496,0.15301163,3411.8,3411.7,3.4486]
[1735664171697,0.15301163,3411.8,3411.7,3.49312144]
[1735664172006,0.15301163,3411.8,3411.7,6.35661594]
[1735664172226,0.15301163,3411.8,3411.7,7.18144922]
[1735664172730,0.15301163,3411.8,3411.7,7.31581064]
[1735664173328,0.7926,3412.2,3411.7,10.1448629]
[1735664173559,0.7926,3412.2,3411.8,4.27836]
[1735664173759,0.1530216,3412.1,3411.8,2.3634196]
[1735664173961,0.1530216,3412.1,3411.9,6.32187703]
[1735664174156,0.1530216,3412.1,3411.9,1.36629479]
[1735664174455,0.1530216,3412.1,3412.0,0.38821592]
[1735664174653,0.1530216,3412.1,3412.0,3.98434592]
[1735664174854,0.1530216,3412.1,3412.0,4.02871184]
[1735664175063,0.1530216,3412.1,3412.0,0.43258184]
[1735664175217,0.1530216,3412.1,3412.0,2.55726184]
[1735664175417,0.1530216,3412.1,3412.0,0.43258184]
[1735664175636,0.1530216,3412.1,3412.0,2.81908184]
[1735664175944,0.1530216,3412.1,3412.0,2.68509184]
[1735664176123,0.1530216,3412.1,3412.0,2.43123734]
[1735664176326,0.1530216,3412.1,3412.0,2.68561484]
[1735664176557,0.1530216,3412.1,3412.0,6.54348388]
[1735664176858,0.1530216,3412.1,3412.0,9.37253614]
[1735664177640,0.1530216,3412.1,3412.0,6.44170614]
[1735664179167,0.1530216,3412.1,3412.0,5.16834388]
[1735664179376,0.1530216,3412.1,3412.0,4.24130484]
[1735664179732,0.9456216,3412.1,3412.0,0.43310484]
[1735664181481,0.9456216,3412.1,3412.0,0.17872734]
[1735664181667,0.9456216,3412.1,3412.0,3.02943734]
[1735664181867,0.9456216,3412.1,3412.0,5.17872734]
[1735664181868,0.1530216,3412.1,3412.0,5.17872734]
[1735664182177,0.1530216,3412.1,3412.0,5.8622953]
[1735664182375,0.1530216,3412.1,3412.0,14.62217756]
[1735664182876,0.1530216,3412.1,3412.0,14.87651896]
[1735664183576,0.7926,3412.6,3412.0,14.87651896]
[1735664183872,0.15293369,3412.5,3412.1,5.2543414]
[1735664184079,0.15293369,3412.5,3412.2,6.64815871]
[1735664184251,0.15293369,3412.5,3412.4,5.93048]
[1735664184577,0.15293771,3412.9,3412.7,0.8101]
[1735664184784,0.15293771,3412.9,3412.8,5.21798226]
[1735664184959,0.15293771,3412.9,3412.8,2.87293715]
[1735664185154,0.15293771,3412.9,3412.8,7.87293715]
[1735664185454,0.15293771,3412.9,3412.8,2.69518771]
[1735664185677,0.15293771,3412.9,3412.8,0.43258771]
[1735664185842,0.15293771,3412.9,3412.8,3.18711282]
[1735664186042,0.15293771,3412.9,3412.8,2.93277142]
[1735664187481,0.15293771,3412.9,3412.8,2.79841]
[1735664187716,0.8175,3412.8,3412.4,3.0]
[1735664188315,0.8175,3412.8,3412.5,0.13430481]
[1735664188523,0.8175,3412.8,3412.5,0.38809501]
[1735664188926,0.8175,3412.8,3412.5,0.2537902]
[1735664189227,0.8175,3412.8,3412.4,2.93047]
[1735664189725,0.8175,3412.8,3412.0,1.21939996]
[1735664190102,0.8175,3412.8,3412.1,1.21939996]
[1735664190309,0.8175,3412.8,3412.2,6.56978226]
[1735664190785,0.8175,3412.8,3412.3,7.70431]
[1735664190986,0.8175,3412.8,3412.3,0.38806139]
[1735664191428,0.8175,3412.8,3412.3,0.13428478]
[1735664191630,0.8175,3412.8,3412.3,0.89581118]
[1735664191831,0.8175,3412.8,3412.4,0.13428478]
[1735664192332,0.8175,3412.8,3412.3,0.7615264]
[1735664193135,0.15293771,3412.9,3412.4,5.0]
[1735664193313,0.15293771,3412.9,3412.5,2.9304]
[1735664193515,0.15293771,3412.9,3412.6,3.64311264]
[1735664193720,0.15293771,3412.9,3412.7,4.11791]
[1735664193917,0.15293771,3412.9,3412.8,5.75919226]
[1735664194119,0.8175,3413.7,3412.8,8.12042226]
[1735664194320,0.15295966,3413.7,3413.4,2.82905226]
[1735664194537,0.15295966,3413.7,3413.5,5.0]
[1735664195068,0.15295966,3413.7,3413.6,0.134305]
[1735664195267,0.15295966,3413.7,3413.6,5.134305]
[1735664195451,0.15295966,3413.7,3413.6,6.30460173]
[1735664195653,0.15295966,3413.7,3413.6,4.39937173]
[1735664195856,0.15295966,3413.7,3413.6,4.26506673]
[1735664197369,0.15295966,3413.7,3413.6,3.49496]
[1735664197523,0.15295966,3413.7,3413.6,2.13876]
[1735664197727,0.15295966,3413.7,3413.4,5.0]
[1735664198047,0.15295966,3413.7,3413.4,5.13395937]
[1735664198430,0.15295966,3413.7,3413.4,0.13395937]
[1735664198630,0.15295966,3413.7,3413.2,3.0]
[1735664199881,0.15295966,3413.7,3413.2,6.25335628]
[1735664200797,0.15295966,3413.7,3413.3,5.02279]
[1735664200998,0.15295966,3413.7,3413.2,3.32357628]
[1735664201299,0.15295966,3413.7,3413.2,3.0]
[1735664201702,0.15295966,3413.7,3413.2,5.92978]
[1735664204227,0.15295966,3413.7,3413.2,3.0]
[1735664204721,0.15295966,3413.7,3413.4,3.64115226]
[1735664204897,0.15295966,3413.7,3413.6,2.92945]
[1735664205204,0.15295966,3413.7,3413.6,3.18930703]
[1735664205362,0.15295966,3413.7,3413.6,2.01886]
[1735664205703,0.15295966,3413.7,3413.5,5.0]
[1735664205863,0.15295966,3413.7,3413.5,2.61404]
[1735664206200,0.15295966,3413.7,3413.5,4.63708]
[1735664206357,0.15295966,3413.7,3413.5,4.02093]
[1735664206557,0.15295966,3413.7,3413.6,0.483303]
[1735664206803,0.15295966,3413.7,3413.6,2.626063]
[1735664206958,0.15295966,3413.7,3413.6,4.072353]
[1735664207162,0.15295966,3413.7,3413.6,5.483303]
[1735664207666,0.15295966,3413.7,3413.6,0.483303]
[1735664208705,0.15295966,3413.7,3413.6,5.0]
[1735664208858,0.15295966,3413.7,3413.3,5.0]
[1735664209505,0.15295966,3413.7,3413.4,2.92962]
[1735664209693,0.15295966,3413.7,3413.5,4.86464]
[1735664210003,0.15295966,3413.7,3413.5,3.93676]
[1735664210212,0.15295966,3413.7,3413.6,0.70002565]
[1735664210367,0.15295966,3413.7,3413.6,4.43540565]
[1735664210569,0.15295966,3413.7,3413.6,4.56467565]
[1735664211911,0.15295966,3413.7,3413.6,0.70002565]
[1735664212210,0.15295966,3413.7,3413.4,2.92962]
[1735664212404,0.15295966,3413.7,3413.5,2.25069]
[1735664212615,0.15295966,3413.7,3413.2,2.92979]
[1735664213109,0.15295966,3413.7,3413.3,0.25325069]
[1735664213314,0.15295966,3413.7,3413.3,0.38724518]
[1735664213489,0.15295966,3413.7,3413.4,0.63170352]
[1735664214815,0.15295966,3413.7,3413.5,3.2029]
[1735664214975,0.15295966,3413.7,3413.6,2.88242]
[1735664215176,0.15295966,3413.7,3413.5,3.34325]
[1735664215371,0.15295966,3413.7,3413.5,2.906]
[1735664215677,0.15295966,3413.7,3413.6,0.35377035]
[1735664216187,0.90405966,3413.7,3413.4,0.63170352]
[1735664216390,0.90405966,3413.7,3413.2,2.92974]
[1735664216593,0.90405966,3413.7,3413.2,3.18312464]
[1735664217203,0.90405966,3413.7,3413.3,0.25338464]
[1735664217410,0.90405966,3413.7,3413.3,0.38745228]
[1735664217817,0.90405966,3413.7,3413.3,0.13406764]
[1735664218011,0.90405966,3413.7,3413.4,0.60638076]
[1735664218203,0.90405966,3413.7,3413.4,0.7404484]
[1735664218726,0.90405966,3413.7,3413.5,4.4419]
[1735664218917,0.90405966,3413.7,3413.6,4.55361]
[1735664219092,0.90405966,3413.7,3413.6,4.29862]
[1735664219428,0.90405966,3413.7,3413.6,2.84]
[1735664220228,0.90405966,3413.7,3413.5,2.98251]
[1735664220424,0.90405966,3413.7,3413.6,0.65185608]
[1735664220631,0.15295966,3413.7,3413.6,3.50251608]
[1735664220788,0.15295966,3413.7,3413.6,5.65185608]
[1735664221191,0.15295966,3413.7,3413.6,5.78606286]
[1735664221416,0.15295966,3413.7,3413.6,4.91357286]
[1735664221794,0.15295966,3413.7,3413.6,4.39246362]
[1735664222033,0.15295966,3413.7,3413.6,3.64561362]
[1735664222233,0.15295966,3413.7,3413.6,1.03983362]
[1735664222826,0.15295966,3413.7,3413.6,3.89965362]
[1735664223033,0.15295966,3413.7,3413.6,6.03983362]
[1735664224489,0.93335966,3413.7,3413.6,0.38797754]
[1735664226537,0.15295966,3413.7,3413.6,0.38797754]
[1735664229147,0.15295966,3413.7,3413.6,0.13420678]
[1735664230666,0.15295966,3413.7,3413.6,0.38841809]
[1735664231065,0.15295966,3413.7,3413.6,5.38841809]
[1735664231267,0.15295966,3413.7,3413.6,1.2202289]
[1735664231461,0.15295966,3413.7,3413.6,0.38841809]
[1735664231788,0.15295966,3413.7,3413.6,2.60913809]
[1735664232088,0.15295966,3413.7,3413.6,0.38841809]
[1735664233448,0.15295966,3413.7,3413.6,4.56185809]
[1735664233655,0.15295966,3413.7,3413.6,2.47982809]
[1735664233850,0.15295966,3413.7,3413.6,3.68668913]
[1735664234084,0.15295966,3413.7,3413.6,6.22777781]
[1735664238885,0.15295966,3413.7,3413.6,2.92950677]
[1735664239092,0.15295966,3413.7,3413.6,4.14890673]
[1735664239402,3.86272966,3413.7,3413.6,4.14890673]
[1735664239629,0.93335966,3413.7,3413.6,4.14890673]
[1735664239971,0.93335966,3413.7,3413.6,1.01643547]
[1735664240842,0.15295966,3413.7,3413.6,4.61162547]
[1735664240980,0.15295966,3413.7,3413.6,5.71299777]
[1735664241318,0.15295966,3413.7,3413.6,4.45232777]
[1735664241480,0.15295966,3413.7,3413.6,4.35249988]
[1735664241673,0.15295966,3413.7,3413.6,0.38862674]
[1735664242231,0.15295966,3413.7,3413.6,3.93114941]
[1735664242386,0.15295966,3413.7,3413.6,1.91713941]
[1735664242586,0.93335966,3413.7,3413.6,1.91713941]
[1735664242794,0.93335966,3413.7,3413.6,1.66298478]
[1735664243002,0.93335966,3413.7,3413.6,3.78004303]
[1735664243978,0.93335966,3413.7,3413.6,7.54759398]
[1735664244181,0.93335966,3413.7,3413.6,4.79087398]
[1735664244382,0.93335966,3413.7,3413.6,4.92533026]
[1735664245002,0.93335966,3413.7,3413.6,6.15777931]
[1735664245202,0.15295966,3413.7,3413.6,6.15777931]
[1735664246498,0.15295966,3413.7,3413.6,3.91449931]
[1735664246699,0.15295966,3413.7,3413.6,6.16250931]
[1735664246898,0.15295966,3413.7,3413.6,8.79706497]
[1735664247213,0.15295966,3413.7,3413.6,6.54905497]
[1735664247724,0.15295966,3413.7,3413.6,2.68205026]
[1735664248401,0.15295966,3413.7,3413.6,3.91442934]
[1735664248583,0.15295966,3413.7,3413.6,3.77997306]
[1735664248783,0.15295966,3413.7,3413.6,3.91443578]
[1735664250000,0.15295966,3413.7,3413.6,3.77997306]
[1735664250223,0.15295966,3413.7,3413.6,2.54759398]
[1735664251024,0.15295966,3413.7,3413.6,1.01908131]
[1735664253831,3.73743,3413.4,3413.3,1.23237908]
[1735664254895,2.92986,3413.2,3412.7,1.23237908]
[1735664255141,0.8078,3413.1,3412.7,1.23237908]
[1735664255808,3.08289114,3413.0,3412.3,1.23237908]
[1735664256002,0.8078,3412.9,3412.3,1.23237908]
[1735664256504,1.19686911,3412.9,3412.3,1.23237908]
[1735664256707,2.93015,3412.8,3412.4,1.01781264]
[1735664258019,2.93015,3412.8,3412.1,0.13419441]
[1735664258226,2.93015,3412.8,3412.0,4.06143134]
[1735664258421,0.8078,3412.6,3412.0,1.23237908]
[1735664258823,0.8078,3412.6,3411.9,1.23237908]
[1735664259135,3.73815,3412.6,3411.9,1.23237908]
[1735664259337,4.111965,3412.6,3411.9,1.23237908]
[1735664259711,4.111965,3412.6,3411.8,2.6756072]
[1735664259891,0.8078,3412.6,3411.8,2.6756072]
[1735664260739,0.8078,3412.6,3411.9,1.01659304]
[1735664262537,0.8078,3412.6,3411.7,6.63095226]
[1735664263515,0.8078,3412.6,3411.7,9.56203226]
[1735664264303,0.8078,3412.6,3411.8,1.01539983]
[1735664265631,0.8078,3412.6,3411.7,6.63095226]
[1735664265829,0.8078,3412.6,3411.7,7.89331739]
[1735664267748,3.7382,3412.6,3411.7,7.89331739]
[1735664270750,0.8078,3412.6,3411.7,10.82438739]
[1735664272024,0.8078,3412.6,3412.0,2.82905226]
[1735664272347,0.7782,3412.8,3412.3,2.82905226]
[1735664272531,0.7782,3412.8,3412.4,0.86561523]
[1735664272739,0.7782,3412.8,3412.2,0.8271]
[1735664275057,0.7782,3412.8,3412.0,3.0]
[1735664277253,0.7782,3412.8,3412.1,0.13392985]
[1735664277920,0.7782,3412.8,3412.0,3.0]
[1735664279126,0.7782,3412.8,3412.1,0.13404012]
[1735664279542,2.93015,3412.8,3412.0,3.0]
[1735664279718,0.7886,3412.7,3412.0,3.0]
[1735664279919,0.7886,3412.7,3412.0,3.79831051]
[1735664280337,0.15294721,3412.6,3412.0,3.79831051]
[1735664281032,0.15294721,3412.6,3412.0,0.79831051]
[1735664281968,0.15294721,3412.6,3412.0,3.0]
[1735664282265,0.15294721,3412.6,3412.1,0.13421282]
[1735664282463,0.15294721,3412.6,3412.4,2.82905226]
[1735664282759,0.15294721,3412.6,3412.1,0.13421282]
[1735664282974,0.15294721,3412.6,3412.2,0.13421282]
[1735664283429,0.15294721,3412.6,3412.3,0.13421282]
[1735664283622,0.15294721,3412.6,3412.4,2.238]
[1735664283823,0.15294721,3412.6,3412.3,0.13421282]
[1735664284019,0.15294721,3412.6,3412.4,2.24801]
[1735664284236,0.15294721,3412.6,3412.4,2.38222282]
[1735664284440,0.15294721,3412.6,3412.4,0.13421282]
[1735664284738,0.15294721,3412.6,3411.9,5.9309]
[1735664284936,0.15294721,3412.6,3412.0,5.12045965]
[1735664285145,0.15294721,3412.6,3412.0,1.20445965]
[1735664285494,0.15294721,3412.6,3412.1,0.13441198]
[1735664285698,0.7886,3412.5,3412.1,0.13441198]
[1735664286038,0.7886,3412.5,3411.8,3.0]
[1735664286571,0.7886,3412.5,3411.9,0.13444157]
[1735664287188,0.7886,3412.5,3412.0,0.13444157]
[1735664287982,0.7886,3412.5,3412.1,0.13444157]
[1735664288496,0.7886,3412.5,3411.8,3.0]
[1735664288698,0.7886,3412.5,3411.7,1.26236513]
[1735664288853,2.93053,3412.4,3411.5,4.23237908]
[1735664289193,0.7886,3412.3,3411.9,0.13444374]
[1735664289490,3.71919,3412.3,3411.9,0.13444374]
[1735664289829,3.71919,3412.3,3411.4,3.7899]
[1735664289830,0.7886,3412.3,3411.4,6.72121]
[1735664290427,0.7886,3412.3,3411.7,3.0]
[1735664290626,0.7886,3412.3,3411.8,0.59631827]
[1735664291076,0.7886,3412.3,3411.8,3.52730827]
[1735664291375,0.7886,3412.3,3411.9,0.13413046]
[1735664291667,0.7886,3412.3,3412.0,5.0]
[1735664291866,0.7551,3412.5,3412.0,5.13413046]
[1735664292072,0.7551,3412.5,3412.0,1.37957533]
[1735664292672,0.7551,3412.5,3412.1,0.13413046]
[1735664293174,0.7551,3412.5,3411.8,3.52730827]
[1735664293532,0.7551,3412.5,3411.8,0.59631827]
[1735664293754,0.7551,3412.5,3411.9,0.13413092]
[1735664294075,0.7551,3412.5,3411.9,1.28574197]
[1735664294432,3.68557,3412.5,3412.0,0.13413092]
[1735664294770,0.7551,3412.5,3412.0,0.13413092]
[1735664295465,0.7551,3412.5,3411.8,1.52473424]
[1735664295666,3.6856,3412.4,3411.8,1.52473424]
[1735664295872,3.6856,3412.4,3411.6,3.0]
[1735664296051,3.6856,3412.4,3411.6,4.32246313]
[1735664296759,3.6856,3412.4,3411.7,1.15165353]
[1735664296960,0.7551,3412.4,3411.7,1.15165353]
[1735664297534,0.7551,3412.4,3411.8,0.13410738]
[1735664297735,0.7551,3412.4,3411.8,2.67830303]
[1735664297947,0.7551,3412.4,3411.8,3.07848881]
[1735664298435,0.7551,3412.4,3411.9,0.13410738]
[1735664298651,0.7551,3412.4,3411.9,2.67830303]
[1735664298973,0.7551,3412.4,3411.9,2.54419565]
[1735664299578,0.7551,3412.4,3412.0,1.01754615]
[1735664300501,0.7551,3412.5,3411.8,1.23237908]
[1735664301498,2.93058,3412.3,3411.8,1.23237908]
[1735664301801,0.7551,3412.2,3411.9,1.01896249]
[1735664302165,0.90796567,3412.2,3411.9,1.01896249]
[1735664302594,0.90796567,3412.2,3412.0,1.01896249]
[1735664303491,0.90796567,3412.2,3411.8,1.23237908]
[1735664303905,0.90796567,3412.2,3411.9,0.1340913]
[1735664304118,0.15286567,3412.2,3411.9,0.1340913]
[1735664304277,0.15286567,3412.2,3411.9,2.68122596]
[1735664304490,0.90796567,3412.2,3412.0,3.33141]
[1735664304817,0.90796567,3412.2,3412.1,2.74801]
[1735664305023,0.90796567,3412.2,3412.1,1.01885386]
[1735664305213,0.90796567,3412.2,3412.1,3.75386386]
[1735664305419,0.90796567,3412.2,3412.1,1.01885386]
[1735664307023,4.22247124,3412.2,3412.1,1.01885386]
[1735664307548,4.22247124,3412.2,3411.7,1.23237908]
[1735664308319,4.22247124,3412.2,3411.8,1.01884136]
[1735664308514,0.7687,3412.1,3411.8,1.01884136]
[1735664309423,3.69944,3412.1,3411.8,1.01884136]
[1735664309603,3.69944,3412.1,3411.5,1.23237908]
[1735664309810,0.7687,3412.1,3411.5,1.23237908]
[1735664310726,0.7687,3412.1,3411.6,1.01866427]
[1735664310905,2.93084,3412.0,3411.6,1.01866427]
[1735664311247,0.7687,3411.9,3411.6,1.01866427]
[1735664311600,0.7687,3411.9,3411.4,1.23237908]
[1735664312445,0.7687,3411.9,3411.5,2.68005942]
[1735664313035,0.7687,3411.9,3411.6,1.01842737]
[1735664313741,0.7687,3411.9,3411.4,1.23237908]
[1735664313924,0.92156567,3412.2,3411.5,5.80986022]
[1735664314124,0.92156567,3412.2,3411.5,0.80986022]
[1735664314510,0.92156567,3412.2,3411.6,0.13400795]
[1735664315013,0.92156567,3412.2,3411.5,3.77791694]
[1735664315217,0.92156567,3412.2,3411.4,1.23237908]
[1735664315701,0.92156567,3412.2,3411.5,0.13402798]
[1735664316643,0.92156567,3412.2,3411.6,0.13402798]
[1735664317143,3.52788187,3412.2,3411.6,0.13402798]
[1735664317301,0.7687,3412.1,3411.6,2.54520023]
[1735664317950,3.69944,3412.1,3411.6,2.54520023]
[1735664318103,0.7687,3412.1,3411.6,2.54520023]
[1735664318299,0.7687,3412.1,3411.7,0.13403625]
[1735664318945,2.93075,3412.1,3411.4,1.23237908]
[1735664319149,0.7687,3412.0,3411.4,1.23237908]
[1735664319456,3.69957,3412.0,3411.4,1.23237908]
[1735664319641,3.69957,3412.0,3411.5,1.52708971]
[1735664319813,3.69957,3412.0,3411.5,1.66113256]
[1735664320408,3.69957,3412.0,3411.2,1.23237908]
[1735664320714,0.7687,3412.0,3411.2,5.94005737]
[1735664321374,0.7687,3412.0,3411.3,0.13403213]
[1735664321667,0.7687,3412.0,3411.3,3.91184178]
[1735664321821,0.7687,3412.0,3411.4,0.13403213]
[1735664322038,3.69953,3412.0,3411.4,0.13403213]
[1735664322350,3.69953,3412.0,3411.4,2.6794627]
[1735664322765,2.93126,3411.5,3411.4,2.54543057]
[1735664322955,3.71996,3411.5,3411.4,2.54543057]
[1735664323140,2.93126,3411.5,3411.2,1.23237908]
[1735664323348,3.72013,3411.3,3411.2,1.23237908]
[1735664324471,3.72013,3411.3,3410.2,4.16473908]
[1735664324472,0.7887,3411.2,3410.2,4.16473908]
[1735664324678,0.7887,3411.2,3410.3,0.32547531]
[1735664324833,0.7887,3411.2,3410.3,0.45935248]
[1735664325350,0.7887,3411.2,3410.3,3.00334301]
[1735664325673,0.7887,3411.2,3410.3,2.86946584]
[1735664325870,0.74135452,3411.5,3410.3,2.54399053]
[1735664325871,2.93177,3410.9,3410.3,2.54399053]
[1735664326061,2.93156,3411.2,3410.3,2.54399053]
[1735664326260,3.72032,3411.1,3410.1,2.04877908]
[1735664326771,0.7887,3411.1,3410.1,2.04877908]
[1735664327092,0.7887,3410.8,3410.2,0.35346434]
[1735664327389,0.7887,3410.8,3410.2,2.59039319]
[1735664327976,0.7887,3410.8,3410.2,1.57345786]
[1735664328202,0.7887,3410.8,3410.2,1.35379494]
[1735664328497,0.7887,3410.8,3410.1,1.52540299]
[1735664328844,0.7887,3410.8,3410.0,4.23237908]
[1735664329137,0.7887,3410.8,3410.0,3.0]
[1735664329334,0.7887,3410.8,3410.1,0.21954145]
[1735664329745,0.7887,3410.8,3410.2,0.04353389]
[1735664330481,0.7887,3410.8,3410.3,0.04348201]
[1735664330645,1.160749,3410.8,3409.9,1.1695174]
[1735664330846,0.7887,3410.8,3410.4,0.04343012]
[1735664331177,0.7887,3410.8,3409.9,1.1695174]
[1735664331393,0.7887,3410.8,3410.5,0.04337824]
[1735664331585,0.7887,3410.5,3409.7,2.82905226]
[1735664331885,3.72092,3410.4,3409.6,1.23237908]
[1735664332844,3.72092,3410.4,3409.6,0.25304743]
[1735664333339,3.72092,3410.4,3409.5,0.219391]
[1735664333538,0.7887,3410.4,3409.4,2.82905226]
[1735664333786,0.7887,3410.4,3409.5,2.93293]
[1735664333982,3.72094,3410.4,3409.4,3.08203536]
[1735664334291,3.72094,3410.4,3409.5,0.68315554]
[1735664334578,0.8109,3410.3,3409.5,0.68315554]
[1735664334986,2.93238,3410.2,3409.4,2.82905226]
[1735664335599,0.8109,3410.3,3409.7,2.82905226]
[1735664338126,0.8109,3410.3,3409.8,0.04374147]
[1735664341178,3.74322,3410.3,3409.8,0.04374147]
[1735664341574,3.74322,3410.3,3409.4,5.76210226]
[1735664341813,3.74322,3410.3,3409.9,0.0443218]
[1735664341978,3.74322,3410.3,3409.4,6.41995249]
[1735664342178,3.74322,3410.3,3410.0,0.0442699]
[1735664342179,0.8109,3410.3,3410.0,0.0442699]
[1735664342375,0.8109,3410.3,3409.7,2.82905226]
[1735664342874,0.8109,3410.3,3409.8,0.04437369]
[1735664343615,0.15294008,3410.2,3409.9,5.2006726]
[1735664343800,0.15294008,3410.2,3410.0,2.48117]
[1735664343992,0.15294008,3410.2,3410.0,0.04218751]
[1735664344611,0.15294008,3410.2,3410.1,2.84225]
[1735664344980,0.15294008,3410.2,3410.1,2.6438208]
[1735664345817,0.96384008,3410.2,3410.1,0.0421408]
[1735664346244,0.96384008,3410.2,3409.7,2.82905226]
[1735664346447,0.96384008,3410.2,3410.1,0.04192996]
[1735664346647,0.96384008,3410.2,3409.7,2.82905226]
[1735664346923,0.96384008,3410.2,3410.1,0.04192996]
[1735664347122,0.96384008,3410.2,3409.7,2.82905226]
[1735664347319,0.96384008,3410.2,3410.1,0.04192996]
[1735664347621,0.96384008,3410.2,3409.7,3.54716351]
[1735664347788,0.96384008,3410.2,3410.1,0.04200982]
[1735664347979,0.96384008,3410.2,3409.7,3.54716351]
[1735664348183,0.96384008,3410.2,3410.1,0.04200982]
[1735664348584,0.96384008,3410.2,3409.7,3.54716351]
[1735664348784,0.96384008,3410.2,3410.1,0.04198986]
[1735664349291,0.96384008,3410.2,3409.7,2.82905226]
[1735664349520,0.96384008,3410.2,3410.1,0.04198986]
[1735664349697,0.96384008,3410.2,3409.7,2.82905226]
[1735664349897,0.96384008,3410.2,3410.1,0.04208969]
[1735664350099,0.96384008,3410.2,3410.1,5.0]
[1735664350313,0.96384008,3410.2,3410.1,0.04206973]
[1735664350509,0.96384008,3410.2,3409.9,5.0]
[1735664350716,0.96384008,3410.2,3410.1,0.04206973]
[1735664350891,0.96384008,3410.2,3410.0,5.0]
[1735664351426,0.96384008,3410.2,3410.1,0.04206973]
[1735664351596,0.96384008,3410.2,3410.1,2.45995973]
[1735664351802,0.96384008,3410.2,3410.1,0.04206973]
[1735664351983,0.96384008,3410.2,3410.1,2.45995973]
[1735664353717,0.96384008,3410.2,3410.1,2.84749055]
[1735664354493,0.15294008,3410.2,3410.1,3.1322396]
[1735664355127,0.15294008,3410.2,3410.1,3.35228033]
[1735664355328,0.15294008,3410.2,3410.1,3.06753128]
[1735664357206,0.15294008,3410.2,3410.1,2.77890128]
[1735664359428,0.15294008,3410.2,3410.1,5.60795354]
[1735664362161,0.15294008,3410.2,3410.1,3.47869354]
[1735664362307,0.15294008,3410.2,3410.1,5.48227354]
[1735664362507,0.15294008,3410.2,3410.1,6.40590289]
[1735664363243,0.15294008,3410.2,3410.1,9.40590289]
[1735664365543,0.15294008,3410.2,3410.1,10.42272125]
[1735664366238,0.15294008,3410.2,3410.1,7.59366899]
[1735664366448,0.15294008,3410.2,3410.1,10.3608319]
[1735664367919,0.15294008,3410.2,3410.1,11.59321098]
[1735664368745,0.15294008,3410.2,3410.1,10.3608319]
[1735664369853,0.15294008,3410.2,3410.1,10.35187853]
[1735664370351,0.15294008,3410.2,3410.1,11.59321098]
[1735664370512,0.15294008,3410.2,3410.1,15.33877098]
[1735664370709,0.7907,3411.1,3410.6,3.0]
[1735664371050,0.15295635,3410.8,3410.7,6.22801]
[1735664371354,0.15295635,3410.8,3410.7,6.49348533]
[1735664371551,0.15295635,3410.8,3410.7,6.88101615]
[1735664371855,0.15295635,3410.8,3410.7,8.1223486]
[1735664372355,0.15295635,3410.8,3410.7,11.8973765]
[1735664372518,0.15295635,3410.8,3410.7,18.61704709]
[1735664372921,0.7907,3411.8,3411.1,2.93153]
[1735664373129,0.59653125,3412.4,3410.7,17.38466801]
[1735664373130,0.7907,3412.3,3411.6,1.24133245]
[1735664373353,0.7907,3412.3,3412.0,1.24133245]
[1735664373525,3.7213,3412.3,3412.0,1.24133245]
[1735664373717,0.15292954,3412.2,3412.0,1.24133245]
[1735664373916,0.15292954,3412.2,3412.1,0.04425402]
[1735664374151,0.15292954,3412.2,3411.8,1.24133245]
[1735664374358,0.15292954,3412.2,3412.1,0.04425402]
[1735664374560,0.15292954,3412.2,3411.6,2.82153588]
[1735664374852,0.15292954,3412.2,3412.1,0.04425402]
[1735664375053,0.15292954,3412.2,3411.6,2.82153588]
[1735664375544,0.15292954,3412.2,3411.7,0.04446137]
[1735664377020,0.15292954,3412.2,3411.7,0.04446137]
[1735664377230,0.15292954,3412.2,3411.7,0.70550409]
[1735664377653,0.15292954,3412.2,3411.8,5.0]
[1735664377833,0.15292954,3412.2,3411.8,3.02501]